fUSD/lending_fUSD_20251221
["ID","MTS","AMOUNT","RATE_DAILY","PERIOD"]
[399345355,1766315446920,-585.0,0.00017219,2]
[399345356,1766315446930,-1514.53,0.00017281,2]
[399345357,1766315446939,-500.0,0.00017288,2]
[399345358,1766315446949,-585.0,0.00017302,2]
[399345359,1766315446958,-2562.0,0.0001732,2]
[399345360,1766315446969,-2562.0,0.0001739,2]
[399345361,1766315446979,-2562.0,0.00017401,2]
[399345362,1766315446988,-311.1,0.00017456,2]
[399345363,1766315446997,-277.35679052,0.00017456,2]
[399345364,1766315447007,-585.0,0.00017471,2]
[399345365,1766315447016,-585.0,0.00017516,2]
[399345366,1766315447026,-2562.0,0.00017522,2]
[399345367,1766315447036,-805.54250255,0.00017534,2]
[399345368,1766315447046,-5888.0,0.00017539,2]
[399345369,1766315447056,-2562.0,0.00017551,2]
[399345370,1766315447066,-1514.53,0.00017555,2]
[399345371,1766315447076,-2562.0,0.00017581,2]
[399345372,1766315447086,-2562.0,0.00017589,2]
[399345373,1766315447096,-1080.39649573,0.00017616,2]
[399345374,1766315447106,-500.0,0.00017616,2]
[399345375,1766315447115,-2000.0,0.00017616,2]
[399345376,1766315447124,-503.80602504,0.00017616,2]
[399345377,1766315447134,-2003.04548544,0.00017616,2]
[399345378,1766315447144,-2000.0,0.00017616,2]
[399345379,1766315447153,-2000.0,0.00017616,2]
[399345380,1766315447162,-2000.0,0.00017616,2]
[399345381,1766315447171,-1439.42444411,0.00017616,2]
[399345382,1766315447181,-1004.58244628,0.00017616,2]
[399345383,1766315447190,-2000.0,0.00017616,2]
[399345384,1766315447200,-2000.0,0.00017616,2]
[399345385,1766315447210,-2000.0,0.00017616,2]
[399345386,1766315447220,-2562.0,0.00017653,2]
[399345387,1766315447230,-659.33,0.00017671,2]
[399345388,1766315447241,-659.33,0.00017671,2]
[399345389,1766315447251,-1317.94,0.00017671,2]
[399345390,1766315447261,-574.37,0.000177,7]
[399345391,1766315447271,-1252.0,0.00017708,2]
[399345392,1766315447281,-310.36,0.00017783,2]
[399345393,1766315447291,-1514.53,0.00017829,2]
[399345394,1766315447301,-7000.0,0.0001783,2]
[399345395,1766315447311,-152.68,0.000179,2]
[399345396,1766315447321,-911.88584811,0.000179,2]
[399345397,1766315447331,-800.51747075,0.000179,2]
[399345398,1766315447341,-238.27,0.00017922,2]
[399345399,1766315447351,-190.1242664,0.0001799,2]
[399345400,1766315447360,-147940.48101906,0.00017998,2]
[399345401,1766315447374,-461754.5410909,0.00018,2]
[399345402,1766315447384,-42844.01227958,0.00018,2]
[399345403,1766315447394,-410062.84337096,0.00018,2]
[399345404,1766315447404,-1185.66627314,0.00018,2]
[399345405,1766315447415,-1000.0,0.00018082,2]
[399345406,1766315447424,-1772.55333379,0.000181,2]
[399345407,1766315447435,-1514.53,0.00018103,2]
[399345408,1766315447446,-5773.7,0.0001814,2]
[399345409,1766315447455,-1637.88145515,0.00018164,2]
[399345410,1766315447465,-2500.0,0.00018164,2]
[399345411,1766315447475,-2500.0,0.00018164,2]
[399345412,1766315447485,-2500.0,0.00018164,2]
[399345413,1766315447495,-860.83448827,0.00018164,2]
[399345414,1766315447504,-2500.0,0.00018164,2]
[399345415,1766315447513,-1443.06963152,0.00018164,2]
[399345416,1766315447524,-585.0,0.00018195,2]
[399345417,1766315447533,-4803.0,0.00018215,2]
[399345418,1766315447543,-564.0,0.00018215,2]
[399345419,1766315447553,-2429.0,0.00018215,2]
[399345420,1766315447562,-150.0,0.00018254,2]
[399345421,1766315447571,-150.0,0.00018254,2]
[399345422,1766315447580,-150.0,0.00018254,2]
[399345423,1766315447590,-150.0,0.00018254,2]
[399345424,1766315447600,-1326.0,0.00018254,2]
[399345425,1766315447609,-3456.0,0.00018254,2]
[399345426,1766315447619,-1609.0,0.00018254,2]
[399345427,1766315447628,-612.0,0.00018254,2]
[399345428,1766315447638,-1262.0,0.00018254,2]
[399345429,1766315447647,-518.0,0.00018254,2]
[399345430,1766315447656,-911.0,0.00018254,2]
[399345431,1766315447665,-1197.0,0.00018254,2]
[399345432,1766315447675,-227.01,0.00018283,2]
[399345433,1766315447685,-1600.0,0.00018299,2]
[399345434,1766315447699,-227.01,0.00018319,2]
[399345435,1766315447709,-585.0,0.00018354,2]
[399345436,1766315447718,-47666.64,0.00018356,2]
[399345437,1766315447728,-1000.0,0.00018372,2]
[399345438,1766315447737,-1514.56202621,0.00018377,2]
[399345439,1766315447747,-151.17822928,0.0001839,2]
[399345440,1766315447757,-6069.09084548,0.00018415,2]
[399345441,1766315447769,-151.34,0.00018427,2]
[399345442,1766315447779,-366.0,0.00018434,2]
[399345443,1766315447790,-1152.0,0.00018434,2]
[399345444,1766315448091,-150.0,0.0001846,2]
[399345445,1766315448101,-481.25,0.0001863,2]
[399345446,1766315448112,-481.25,0.0001863,2]
[399345447,1766315448123,-481.25,0.0001863,2]
[399345448,1766315448135,-4609.0,0.00018638,2]
[399345449,1766315448147,-2219.95868703,0.00018712,2]
[399345450,1766315448156,-3000.0,0.00018712,2]
[399345451,1766315448166,-1648.62512129,0.00018712,2]
[399345452,1766315448175,-3000.0,0.00018712,2]
[399345453,1766315448184,-150.0,0.00018715,2]
[399345454,1766315448194,-150.0,0.00018715,2]
[399345455,1766315448206,-150.0,0.00018715,2]
[399345456,1766315448216,-151.28381653,0.00018715,2]
[399345457,1766315448226,-150.0,0.00018715,2]
[399345458,1766315448236,-150.0,0.00018715,2]
[399345459,1766315448247,-150.0,0.00018715,2]
[399345460,1766315448258,-150.0,0.00018715,2]
[399345461,1766315448269,-150.0,0.00018715,2]
[399345462,1766315448280,-150.0,0.00018715,2]
[399345463,1766315448290,-150.0,0.00018715,2]
[399345464,1766315448302,-150.0,0.00018715,2]
[399345465,1766315448312,-150.00000001,0.00018715,2]
[399345466,1766315448322,-150.0,0.00018715,2]
[399345467,1766315448331,-150.89972091,0.00018715,2]
[399345468,1766315448341,-150.0,0.00018715,2]
[399345469,1766315448351,-150.0,0.00018715,2]
[399345470,1766315448361,-7664.8,0.00018733,2]
[399345471,1766315448374,-1000.0,0.0001876,2]
[399345472,1766315448384,-150.0,0.00018778,2]
[399345473,1766315448393,-150.0,0.00018784,2]
[399345474,1766315448403,-150.0,0.00018798,2]
[399345475,1766315448414,-150.99,0.000188,2]
[399345476,1766315448423,-150.99,0.000188,2]
[399345477,1766315448433,-310.36,0.00018804,2]
[399345478,1766315448443,-322.6107,0.00018825,2]
[399345479,1766315448454,-287.61899177,0.00018825,2]
[399345480,1766315448464,-7000.0,0.0001883,2]
[399345481,1766315448474,-150.0,0.00018841,2]
[399345482,1766315448484,-150.0,0.00018845,2]
[399345483,1766315448494,-150.0,0.00018854,2]
[399345484,1766315448505,-150.0,0.00018854,2]
[399345485,1766315448515,-150.0,0.00018864,2]
[399345486,1766315448524,-150.0,0.00018881,2]
[399345487,1766315448533,-160.39542526,0.000189,2]
[399345488,1766315448543,-150.0,0.00018904,2]
[399345489,1766315448552,-238.27,0.00018913,2]
[399345490,1766315448562,-150.0,0.00018923,2]
[399345491,1766315448571,-150.0,0.00018965,2]
[399345492,1766315448581,-150.0,0.00018967,2]
[399345493,1766315448590,-150.0,0.00018975,2]
[399345494,1766315448599,-150.0,0.00018992,2]
[399345495,1766315448609,-150.0,0.00018992,2]
[399345496,1766315448618,-554.55953732,0.00019,2]
[399345497,1766315448627,-114341.54230033,0.00019,2]
[399345498,1766315448637,-300.0,0.00019,2]
[399345499,1766315448646,-1354.02052844,0.00019,2]
[399345500,1766315448656,-150.0,0.00019012,2]
[399345501,1766315448665,-150.0,0.0001903,2]
[399345502,1766315448674,-150.0,0.00019048,2]
[399345503,1766315448684,-150.0,0.00019062,2]
[399345504,1766315448693,-308.90340785,0.00019082,2]
[399345505,1766315448702,-150.0,0.00019093,2]
[399345506,1766315448711,-150.0,0.00019105,2]
[399345507,1766315448720,-150.0,0.00019131,2]
[399345508,1766315448729,-150.0,0.00019131,2]
[399345509,1766315448738,-150.0,0.00019131,2]
[399345510,1766315448748,-150.0,0.00019131,2]
[399345511,1766315448757,-150.0,0.00019156,2]
[399345512,1766315448766,-150.0,0.00019161,2]
[399345513,1766315448776,-790.0,0.00019178,2]
[399345514,1766315448786,-150.0,0.000192,4]
[399345515,1766315448795,-150.0,0.00019214,4]
[399345516,1766315448804,-150.0,0.00019219,4]
[399345517,1766315448814,-150.0,0.00019235,4]
[399345518,1766315448823,-150.0,0.00019235,4]
[399345519,1766315448832,-150.0,0.00019235,4]
[399345520,1766315448842,-2129.0,0.00019235,2]
[399345521,1766315448852,-3500.0,0.0001926,2]
[399345522,1766315448862,-2303.48287397,0.0001926,2]
[399345523,1766315448871,-150.0,0.0001927,4]
[399345524,1766315448880,-150.0,0.0001927,4]
[399345525,1766315448890,-150.0,0.00019282,4]
[399345526,1766315448899,-150.0,0.00019297,4]
[399345527,1766315448909,-150.0,0.00019309,4]
[399345528,1766315448918,-150.0,0.00019339,4]
[399345529,1766315448927,-150.0,0.00019345,4]
[399345530,1766315448937,-150.0,0.00019365,4]
[399345531,1766315448947,-150.0,0.0001938,4]
[399345532,1766315448956,-150.0,0.00019408,4]
[399345533,1766315448965,-150.0,0.00019408,4]
[399345534,1766315448975,-150.0,0.00019408,4]
[399345535,1766315448984,-1000.0,0.00019438,2]
[399345536,1766315448993,-150.0,0.00019458,4]
[399345537,1766315449003,-150.0,0.00019464,4]
[399345538,1766315449013,-150.0,0.00019471,4]
[399345539,1766315449022,-150.0,0.00019478,4]
[399345540,1766315449031,-150.0,0.00019495,4]
[399345541,1766315449041,-150.0,0.00019534,4]
[399345542,1766315449050,-150.0,0.00019547,4]
[399345543,1766315449060,-150.0,0.00019547,4]
[399345544,1766315449069,-150.0,0.00019547,4]
[399345545,1766315449079,-150.0,0.00019547,4]
[399345546,1766315449088,-150.0,0.00019597,4]
[399345547,1766315449098,-397.16543724,0.00019606,2]
[399345548,1766315449107,-150.0,0.00019606,4]
[399345549,1766315449116,-150.0,0.00019616,4]
[399345550,1766315449126,-150.0,0.00019625,4]
[399345551,1766315449136,-150.0,0.0001963,4]
[399345552,1766315449145,-150.0,0.0001966,4]
[399345553,1766315449155,-150.0,0.00019685,4]
[399345554,1766315449169,-150.0,0.00019685,4]
[399345555,1766315449180,-152.68,0.0001969,2]
[399345556,1766315449190,-151.17822928,0.00019703,2]
[399345557,1766315449200,-150.0,0.00019713,4]
[399345558,1766315449210,-150.0,0.00019723,4]
[399345559,1766315449219,-150.0,0.00019755,4]
[399345560,1766315449228,-150.0,0.00019755,4]
[399345561,1766315449238,-150.0,0.00019755,4]
[399345562,1766315449248,-150.0,0.00019755,4]
[399345563,1766315449258,-150.0,0.00019755,4]
[399345564,1766315449269,-150.0,0.00019755,4]
[399345565,1766315449279,-150.0,0.00019786,4]
[399345566,1766315449288,-150.0,0.00019796,4]
[399345567,1766315449298,-2341.26500224,0.00019808,2]
[399345568,1766315449308,-150.0,0.00019824,4]
[399345569,1766315449317,-150.0,0.00019824,4]
[399345570,1766315449326,-7000.0,0.0001983,2]
[399345571,1766315449335,-150.0,0.00019849,4]
[399345572,1766315449344,-150.0,0.0001988,4]
[399345573,1766315449353,-150.0,0.00019885,4]
[399345574,1766315449363,-150.0,0.00019893,4]
[399345575,1766315449376,-172.42,0.000199,2]
[399345576,1766315449385,-150.0,0.00019903,4]
[399345577,1766315449394,-150.0,0.00019912,4]
[399345578,1766315449404,-150.0,0.00019963,4]
[399345579,1766315449415,-150.0,0.00019963,4]
[399345580,1766315449424,-150.0,0.00019963,4]
[399345581,1766315449434,-150.0,0.00019963,4]
[399345582,1766315449446,-150.0,0.00019975,4]
[399345583,1766315449455,-172.42,0.00019977,2]
[399345584,1766315449465,-1098.0,0.0001998,2]
[399345585,1766315449474,-300.0,0.00019997,2]
[399345586,1766315449484,-666.0,0.00019997,2]
[399345587,1766315449493,-300.0,0.00019997,2]
[399345588,1766315449503,-666.0,0.00019997,2]
[399345589,1766315449512,-300.0,0.00019997,2]
[399345590,1766315449522,-198.56,0.00019998,2]
[399345591,1766315449531,-300.0,0.00019999,2]
[399345592,1766315449540,-666.0,0.00019999,2]
[399345593,1766315449549,-7477.36847944,0.0002,2]
[399345594,1766315449559,-590.31244767,0.0002,2]
[399345595,1766315449568,-10877.62322293,0.0002,2]
[399345596,1766315449578,-7958.56344693,0.0002,2]
[399345597,1766315449588,-1527.86571511,0.0002,2]
[399345598,1766315449597,-186.5,0.0002,2]
[399345599,1766315449607,-8720.0,0.0002001,2]
[399345600,1766315449616,-150.0,0.00020015,4]
[399345601,1766315449626,-150.0,0.00020032,4]
[399345602,1766315449637,-150.0,0.00020038,4]
[399345603,1766315449647,-1000.0,0.00020042,2]
[399345604,1766315449656,-150.0,0.00020046,4]
[399345605,1766315449665,-150.0,0.00020052,4]
[399345606,1766315449674,-172.42,0.00020053,2]
[399345607,1766315449683,-198.56,0.00020093,2]
[399345608,1766315449693,-150.0,0.00020101,4]
[399345609,1766315449703,-150.0,0.00020101,4]
[399345610,1766315449712,-150.0,0.00020101,4]
[399345611,1766315449722,-1000.0,0.00020116,2]
[399345612,1766315449731,-1600.0,0.00020129,2]
[399345613,1766315449740,-150.0,0.00020129,4]
[399345614,1766315449750,-150.0,0.00020145,4]
[399345615,1766315449759,-6069.09084548,0.00020163,2]
[399345616,1766315449768,-150.0,0.00020164,4]
[399345617,1766315449778,-150.0,0.00020171,4]
[399345618,1766315449787,-1000.0,0.00020187,2]
[399345619,1766315449796,-334.5472959,0.00020194,2]
[399345620,1766315449806,-298.26089446,0.00020194,2]
[399345621,1766315449815,-150.0,0.000202,4]
[399345622,1766315449824,-150.0,0.00020212,4]
[399345623,1766315449834,-1613.0,0.00020221,2]
[399345624,1766315449843,-150.0,0.00020227,4]
[399345625,1766315449853,-150.0,0.0002024,4]
[399345626,1766315449862,-150.0,0.0002024,4]
[399345627,1766315449871,-150.0,0.00020275,4]
[399345628,1766315449881,-150.0,0.00020275,4]
[399345629,1766315449891,-150.0,0.00020275,4]
[399345630,1766315449901,-150.0,0.0002029,4]
[399345631,1766315449911,-150.0,0.00020295,4]
[399345632,1766315449922,-150.0,0.00020309,4]
[399345633,1766315449932,-150.0,0.00020349,4]
[399345634,1766315449942,-150.0,0.00020353,4]
[399345635,1766315449951,-150.0,0.00020379,4]
[399345636,1766315449960,-150.0,0.00020379,4]
[399345637,1766315449970,-150.0,0.00020379,4]
[399345638,1766315449979,-150.0,0.00020379,4]
[399345639,1766315449989,-150.0,0.00020405,4]
[399345640,1766315449999,-150.0,0.00020416,4]
[399345641,1766315450008,-150.0,0.00020448,4]
[399345642,1766315450018,-501.24112618,0.00020452,2]
[399345643,1766315450028,-150.0,0.00020462,4]
[399345644,1766315450038,-150.0,0.00020479,4]
[399345645,1766315450048,-150.0,0.00020497,4]
[399345646,1766315450058,-6453.0,0.00020502,2]
[399345647,1766315450067,-150.0,0.00020517,4]
[399345648,1766315450077,-150.0,0.00020517,4]
[399345649,1766315450087,-150.0,0.00020535,4]
[399345650,1766315450097,-150.0,0.00020542,4]
[399345651,1766315450106,-150.0,0.00020545,4]
[399345652,1766315450116,-659.33,0.00020548,2]
[399345653,1766315450125,-481.17,0.00020548,2]
[399345654,1766315450135,-659.33,0.00020548,2]
[399345655,1766315450145,-659.33,0.00020548,2]
[399345656,1766315450155,-21439.35,0.00020548,2]
[399345657,1766315450164,-191.85,0.00020548,2]
[399345658,1766315450174,-300.0,0.00020548,2]
[399345659,1766315450185,-150.0,0.00020587,4]
[399345660,1766315450194,-150.0,0.00020605,4]
[399345661,1766315450204,-150.0,0.00020628,4]
[399345662,1766315450215,-150.0,0.00020646,4]
[399345663,1766315450224,-150.0,0.00020656,4]
[399345664,1766315450234,-150.0,0.00020656,4]
[399345665,1766315450243,-150.0,0.00020665,4]
[399345666,1766315450254,-300.0,0.00020666,2]
[399345667,1766315450264,-676.23992225,0.00020666,2]
[399345668,1766315450274,-235.27898001,0.00020666,2]
[399345669,1766315450284,-150.0,0.00020668,4]
[399345670,1766315450293,-300.0,0.00020699,2]
[399345671,1766315450304,-300.0,0.00020699,2]
[399345672,1766315450313,-666.0,0.00020699,2]
[399345673,1766315450323,-22571.15008706,0.000207,2]
[399345674,1766315450334,-2000.0,0.000207,2]
[399345675,1766315450343,-150.0,0.00020711,4]
[399345676,1766315450354,-150.0,0.00020725,4]
[399345677,1766315450366,-150.0,0.00020732,4]
[399345678,1766315450376,-7664.8,0.00020759,2]
[399345679,1766315450386,-1000.0,0.00020795,2]
[399345680,1766315450396,-150.0,0.00020795,4]
[399345681,1766315450407,-150.0,0.00020795,4]
[399345682,1766315450417,-150.0,0.00020795,4]
[399345683,1766315450547,-150.0,0.00020795,4]
[399345684,1766315450557,-150.0,0.00020795,4]
[399345685,1766315450566,-150.0,0.00020795,4]
[399345686,1766315450576,-150.0,0.00020795,4]
[399345687,1766315450586,-150.0,0.00020795,4]
[399345688,1766315450596,-150.0,0.00020795,4]
[399345689,1766315450606,-150.0,0.00020795,4]
[399345690,1766315450616,-150.0,0.00020795,4]
[399345691,1766315450625,-7000.0,0.0002083,2]
[399345692,1766315450634,-540.0,0.0002089,2]
[399345693,1766315450643,-11877.2,0.00020951,2]
[399345694,1766315450653,-9999.99,0.00020951,2]
[399345695,1766315450662,-300.0,0.00020999,2]
[399345696,1766315450671,-666.0,0.00020999,2]
[399345697,1766315450680,-20000.0,0.00021,2]
[399345698,1766315450690,-350.0,0.00021,2]
[399345699,1766315450699,-151.17822928,0.00021017,2]
[399345700,1766315450708,-1098.0,0.00021032,2]
[399345701,1766315450717,-12466.61,0.00021068,2]
[399345702,1766315450727,-4803.0,0.00021215,2]
[399345703,1766315450736,-564.0,0.00021215,2]
[399345704,1766315450745,-2429.0,0.00021215,2]
[399345705,1766315450754,-1326.0,0.00021254,2]
[399345706,1766315450763,-3456.0,0.00021254,2]
[399345707,1766315450772,-1609.0,0.00021254,2]
[399345708,1766315450782,-612.0,0.00021254,2]
[399345709,1766315450791,-1262.0,0.00021254,2]
[399345710,1766315450800,-518.0,0.00021254,2]
[399345711,1766315450811,-911.0,0.00021254,2]
[399345712,1766315450821,-1197.0,0.00021254,2]
[399345713,1766315450830,-553.9,0.0002137,2]
[399345714,1766315450839,-553.9,0.0002137,2]
[399345715,1766315450848,-553.9,0.0002137,2]
[399345716,1766315450857,-382.61,0.0002137,2]
[399345717,1766315450867,-150.0,0.0002137,2]
[399345718,1766315450876,-300.0,0.0002137,2]
[399345719,1766315450885,-150.0,0.0002137,2]
[399345720,1766315450894,-179.9996302,0.00021417,2]
[399345721,1766315450903,-152.68,0.0002148,2]
[399345722,1766315450912,-300.0,0.00021499,2]
[399345723,1766315450921,-666.0,0.00021499,2]
[399345724,1766315450930,-57327.80658221,0.000215,2]
[399345725,1766315450939,-346.92554585,0.00021563,2]
[399345726,1766315450948,-309.29654756,0.00021563,2]
[399345727,1766315450957,-171.54419902,0.00021682,2]
[399345728,1766315450967,-7000.0,0.0002183,2]
[399345729,1766315450976,-150.0,0.000219,2]
[399345730,1766315450985,-6069.09084548,0.0002191,2]
[399345731,1766315450998,-5000.0,0.00021918,2]
[399345732,1766315451008,-1600.0,0.00021959,2]
[399345733,1766315451017,-400.0,0.0002197,2]
[399345734,1766315451027,-400.0,0.0002197,2]
[399345735,1766315451036,-598.95449494,0.0002197,2]
[399345736,1766315451045,-800.0,0.00022,8]
[399345737,1766315451054,-800.0,0.00022,8]
[399345738,1766315451063,-800.0,0.00022,8]
[399345739,1766315451072,-800.0,0.00022,8]
[399345740,1766315451081,-800.0,0.00022,8]
[399345741,1766315451089,-800.0,0.00022,8]
[399345742,1766315451099,-528.11013609,0.00022,8]
[399345743,1766315451108,-800.0,0.00022,8]
[399345744,1766315451117,-800.0,0.00022,8]
[399345745,1766315451127,-800.0,0.00022,8]
[399345746,1766315451136,-800.0,0.00022,8]
[399345747,1766315451144,-800.0,0.00022,8]
[399345748,1766315451154,-800.0,0.00022,8]
[399345749,1766315451163,-800.0,0.00022,8]
[399345750,1766315451172,-800.0,0.00022,8]
[399345751,1766315451182,-7395.33,0.00022,7]
[399345752,1766315451191,-4128.96277353,0.00022,2]
[399345753,1766315451200,-1098.0,0.00022139,2]
[399345754,1766315451210,-151.0,0.00022144,2]
[399345755,1766315451219,-157.788253,0.00022144,2]
[399345756,1766315451229,-2258.0,0.00022182,2]
[399345757,1766315451238,-151.17822928,0.0002233,2]
[399345758,1766315451247,-250.0,0.00022448,2]
[399345759,1766315451257,-9035.0,0.00022552,2]
[399345760,1766315451266,-161.45,0.000226,3]
[399345761,1766315451276,-172.91583061,0.000226,2]
[399345762,1766315451286,-7664.8,0.00022786,2]
[399345763,1766315451295,-359.76179104,0.00022932,2]
[399345764,1766315451304,-320.74051982,0.00022932,2]
[399345765,1766315451314,-350.0,0.00022996,2]
[399345766,1766315451323,-500.0,0.00023,2]
[399345767,1766315451332,-500.0,0.00023,2]
[399345768,1766315451342,-169.0,0.00023,7]
[399345769,1766315451351,-1098.0,0.00023304,2]
[399345770,1766315451360,-552.13552845,0.00023544,2]
[399345771,1766315451373,-151.17822928,0.00023644,2]
[399345772,1766315451383,-6069.09084548,0.00023658,2]
[399345773,1766315451392,-1000.0,0.00024,24]
[399345774,1766315451401,-2621.0,0.00024,2]
[399345775,1766315451411,-779.0,0.00024,2]
[399345776,1766315451421,-501.24112618,0.00024142,2]
[399345777,1766315451430,-169.0,0.00024164,7]
[399345778,1766315451440,-4803.0,0.00024215,2]
[399345779,1766315451450,-2429.0,0.00024215,2]
[399345780,1766315451460,-1326.0,0.00024254,2]
[399345781,1766315451470,-3456.0,0.00024254,2]
[399345782,1766315451479,-1609.0,0.00024254,2]
[399345783,1766315451488,-612.0,0.00024254,2]
[399345784,1766315451498,-1262.0,0.00024254,2]
[399345785,1766315451507,-518.0,0.00024254,2]
[399345786,1766315451518,-911.0,0.00024254,2]
[399345787,1766315451528,-1197.0,0.00024254,2]
[399345788,1766315451538,-373.07297731,0.00024301,2]
[399345789,1766315451547,-332.60791905,0.00024301,2]
[399345790,1766315451556,-2619.0,0.00024333,2]
[399345791,1766315451565,-5093.58039381,0.00024389,2]
[399345792,1766315451574,-5000.0,0.00024389,2]
[399345793,1766315451583,-5000.0,0.00024389,2]
[399345794,1766315451592,-5000.0,0.00024389,2]
[399345795,1766315451602,-2000.0,0.000244,2]
[399345796,1766315451611,-1098.0,0.0002453,2]
[399345797,1766315451621,-7395.33,0.000246,7]
[399345798,1766315451630,-848.0,0.000246,2]
[399345799,1766315451639,-300.0,0.000246,2]
[399345800,1766315451648,-979.0,0.000246,2]
[399345801,1766315451657,-1000.0,0.00024658,2]
[399345802,1766315451666,-219.41,0.00024658,2]
[399345803,1766315451675,-300.0,0.00024658,2]
[399345804,1766315451684,-155.12,0.00024658,2]
[399345805,1766315451693,-2000.0,0.00024676,2]
[399345806,1766315451702,-907.08783675,0.00024708,2]
[399345807,1766315451711,-400.0,0.0002477,2]
[399345808,1766315451720,-197.05869145,0.00024797,7]
[399345809,1766315451729,-308.09327567,0.00024799,10]
[399345810,1766315451739,-151.0,0.000248,7]
[399345811,1766315451748,-151.0,0.000248,7]
[399345812,1766315451757,-151.0,0.000248,7]
[399345813,1766315451766,-151.0,0.000248,7]
[399345814,1766315451775,-375329.6186497,0.000248,2]
[399345815,1766315451799,-4312.36922466,0.000248,2]
[399345816,1766315451811,-5069.27081423,0.000248,2]
[399345817,1766315451848,-512.27802841,0.000248,2]
[399345818,1766315451860,-1043.55465848,0.000248,2]
[399345819,1766315451915,-1339.99496718,0.000248,2]
[399345820,1766315451950,-306.069,0.000248,2]
[399345821,1766315451962,-6443.11814217,0.000248,2]
[399345822,1766315451974,-1234.61425699,0.000248,2]
[399345823,1766315451985,-549.76957592,0.000248,2]
[399345824,1766315452303,-314.10139846,0.00015215,2]
[399345825,1766315452364,-6214.89860154,0.00015215,2]
[399345826,1766315452377,-4928.52516163,0.00018215,2]
[399345827,1766315452389,-1600.47483837,0.00018215,2]
[399345828,1766315452398,-544.67347974,0.00021215,2]
[399345835,1766315472527,-5984.32652026,0.00021215,2]
[399345836,1766315472538,-6529.0,0.00024215,2]
[399345837,1766315472548,-213343.18305026,0.000248,2]
[399345838,1766315472558,-3083.0,0.00024808,2]
[399345839,1766315472568,-7664.8,0.00024813,2]
[399345840,1766315472579,-720.30742137,0.000249,2]
[399345841,1766315472589,-151.0,0.000249,7]
[399345842,1766315472599,-151.0,0.000249,7]
[399345843,1766315472609,-151.0,0.000249,7]
[399345844,1766315472619,-606195.491436,0.000249,2]
[399345845,1766315472628,-151.17822928,0.00024958,2]
[399345846,1766315472638,-7083.15842753,0.00025,2]
[399345847,1766315472648,-204.96,0.00025,120]
[399345848,1766315472658,-150.0,0.00025,2]
[399345849,1766315472668,-150.0,0.00025,2]
[399345850,1766315472678,-150.0,0.00025,2]
[399345851,1766315472687,-150.0,0.00025,2]
[399345852,1766315472697,-150.0,0.00025,2]
[399345853,1766315472706,-150.0,0.00025,2]
[399345854,1766315472717,-150.0,0.00025,2]
[399345855,1766315472726,-150.0,0.00025,2]
[399345856,1766315472735,-150.0,0.00025,2]
[399345857,1766315472745,-150.0,0.00025,2]
[399345858,1766315472754,-278.57,0.00025,2]
[399345859,1766315472764,-1310.0,0.00025,2]
[399345860,1766315472773,-1723.11,0.000251,14]